bitfinex/quotes_ETHUSD_20220212
["timestamp","ask_amount","ask_price","bid_price","bid_amount"]
[1644677838792,0.52270849,2895.3,2894.4,0.55319997]
[1644677838990,0.1736,2895.6,2894.4,0.13819997]
[1644677839200,0.65188342,2895.7,2894.4,0.13819997]
[1644677839393,0.1726,2895.6,2894.4,0.13819997]
[1644677839594,0.01284776,2896.0,2894.4,0.55319997]
[1644677839595,0.001,2896.0,2894.4,0.55319997]
[1644677839789,0.90188342,2896.2,2894.6,3.4]
[1644677840093,0.86017768,2895.9,2894.6,3.4]
[1644677840489,0.68757768,2895.9,2894.6,3.5726]
[1644677840889,0.001,2896.1,2894.7,1.415]
[1644677841089,0.1726,2896.3,2894.7,1.5876]
[1644677841491,0.00957598,2895.5,2894.9,0.8636]
[1644677842412,0.59773928,2896.1,2894.7,1.5876]
[1644677842616,0.59773928,2896.1,2894.7,1.415]
[1644677842817,0.00957616,2895.3,2894.7,2.27865]
[1644677843018,0.00957616,2895.3,2894.7,1.415]
[1644677843619,0.59773928,2896.1,2894.7,1.415]
[1644677844022,0.59773928,2896.1,2894.7,0.415]
[1644677844223,0.00957634,2895.1,2894.7,0.415]
[1644677844432,0.00957634,2895.1,2894.6,3.4]
[1644677844625,0.00957634,2895.1,2894.7,0.1726]
[1644677844822,0.001,2896.1,2894.6,1.8311966]
[1644677845023,0.65188342,2896.3,2894.6,1.8311966]
[1644677845024,0.1726,2895.9,2894.6,1.8311966]
[1644677845323,0.00957648,2895.0,2894.6,1.8311966]
[1644677846023,0.8106,2895.3,2894.6,1.8311966]
[1644677846024,0.1726,2895.3,2894.6,1.8311966]
[1644677846272,0.00889682,2894.9,2894.6,1.8311966]
[1644677847273,0.5215165,2895.6,2894.6,1.8311966]
[1644677847472,0.00080008,2896.0,2894.7,0.1726]
[1644677847672,3.25,2895.9,2894.6,0.7537966]
[1644677847874,0.001,2895.8,2894.7,0.1726]
[1644677848375,0.00080008,2896.0,2894.7,0.1726]
[1644677848774,0.65987935,2895.8,2894.8,0.415]
[1644677848974,0.65987935,2895.8,2894.6,0.7537966]
[1644677849378,0.001,2895.8,2894.7,3.95328428]
[1644677849582,0.001,2895.8,2894.7,4.36828428]
[1644677849583,0.00394803,2895.8,2894.7,4.36828428]
[1644677849774,0.00394803,2895.8,2894.8,1.0]
[1644677850017,0.00394803,2895.8,2894.9,0.5876]
[1644677850217,0.00394803,2895.8,2894.9,0.89276751]
[1644677850620,0.00394803,2895.8,2894.9,0.59276751]
[1644677850823,0.00394803,2895.8,2895.1,0.86348]
[1644677851021,0.1726,2895.9,2895.2,0.5876]
[1644677851221,0.00956767,2895.5,2895.2,0.5876]
[1644677852128,0.00394803,2895.8,2895.2,0.5876]
[1644677852321,0.00956767,2895.5,2895.2,0.5876]
[1644677853322,0.00083672,2896.0,2895.2,0.5876]
[1644677853521,0.00083672,2896.0,2895.2,0.415]
[1644677853522,0.00956767,2895.5,2895.2,0.415]
[1644677854574,0.00083672,2896.0,2895.2,0.415]
[1644677854788,0.00956767,2895.5,2895.2,0.415]
[1644677855181,0.00956767,2895.5,2894.9,1.24256751]
[1644677855782,0.1726,2895.9,2894.9,1.24256751]
[1644677855979,0.54096546,2895.7,2894.9,1.24256751]
[1644677856180,0.00905257,2895.3,2894.9,0.00516751]
[1644677856981,0.00394803,2895.6,2894.9,0.00516751]
[1644677857180,0.54096546,2895.7,2894.9,0.00516751]
[1644677857181,0.00905264,2895.2,2894.9,0.00516751]
[1644677857429,0.00905264,2895.2,2894.5,0.1726]
[1644677857931,0.00905264,2895.2,2894.4,0.13819997]
[1644677858120,0.00394803,2895.4,2894.4,0.13819997]
[1644677858323,0.52976708,2895.1,2894.2,0.1726]
[1644677858523,0.00394803,2895.4,2894.2,0.1726]
[1644677858524,0.00905283,2895.0,2894.2,0.1726]
[1644677858721,0.00905283,2895.0,2894.1,1.1619]
[1644677859322,0.00477876,2895.5,2894.1,1.1619]
[1644677859323,0.00083073,2895.5,2894.1,1.1619]
[1644677859524,0.1726,2895.3,2894.1,1.1619]
[1644677859724,0.00905305,2894.7,2894.1,1.1619]
[1644677859931,0.00905305,2894.7,2894.0,0.1726]
[1644677860142,0.00905305,2894.7,2893.9,0.1726]
[1644677860323,0.00905305,2894.7,2893.9,0.415]
[1644677860824,0.00912865,2894.4,2893.9,0.415]
[1644677861285,0.00912865,2894.4,2893.9,1.27888]
[1644677861688,0.71125965,2895.1,2893.9,1.27888]
[1644677862086,0.00912877,2894.3,2893.9,1.27888]
[1644677862287,0.00912877,2894.3,2893.9,0.415]
[1644677862493,0.00912877,2894.3,2893.9,3.4]
[1644677862989,0.00082324,2894.9,2893.9,3.4]
[1644677863287,0.00912881,2894.2,2893.9,3.4]
[1644677863489,1.47090908,2895.0,2894.0,3.4726]
[1644677863490,0.1726,2895.0,2894.0,3.4726]
[1644677863691,1.14810636,2896.1,2894.0,3.4726]
[1644677863692,3.501,2895.8,2894.2,0.01265067]
[1644677863889,1.47067733,2895.4,2894.0,0.17209129]
[1644677864088,1.47067733,2895.4,2893.9,3.4]
[1644677864089,3.5,2895.3,2893.9,3.4]
[1644677864289,1.47067733,2895.2,2893.9,3.4]
[1644677864489,3.6726,2895.1,2893.9,3.4]
[1644677864788,0.56916921,2894.0,2893.9,1.83090855]
[1644677865025,1.0703,2894.7,2893.9,1.83090855]
[1644677865218,1.46752171,2894.6,2893.9,1.83090855]
[1644677865416,0.25,2894.9,2893.9,1.83090855]
[1644677865618,1.46727458,2894.8,2893.9,1.83090855]
[1644677866019,0.69369279,2894.2,2893.9,1.83090855]
[1644677866322,0.25,2894.9,2893.9,1.83090855]
[1644677866323,3.9400134,2894.7,2893.9,1.83090855]
[1644677866521,1.47104784,2894.6,2893.9,1.83090855]
[1644677866920,1.47104784,2894.7,2893.9,1.83090855]
[1644677867120,0.17947689,2894.8,2893.9,1.83090855]
[1644677867121,1.47104784,2894.6,2893.9,1.83090855]
[1644677867319,1.47104784,2894.5,2893.9,1.83090855]
[1644677867526,1.47104784,2894.4,2893.9,1.83090855]
[1644677867719,1.47104784,2894.3,2893.9,1.83090855]
[1644677867919,9.04862497,2894.8,2893.9,1.83090855]
[1644677868121,0.8598,2894.5,2894.1,0.0089401]
[1644677868320,5.42089414,2894.4,2894.1,0.0089401]
[1644677868670,1.47115207,2894.3,2894.1,0.0089401]
[1644677868871,1.47115207,2894.3,2893.9,1.78984865]
[1644677869270,1.47115207,2894.3,2894.1,0.00268999]
[1644677869670,0.64039907,2894.2,2894.1,0.00268999]
[1644677869870,2.11155114,2894.2,2894.1,0.00268999]
[1644677870078,2.11155114,2894.2,2893.9,1.78984865]
[1644677870272,1.47115207,2894.1,2893.9,1.78984865]
[1644677870474,1.47115207,2894.0,2893.9,1.78984865]
[1644677876976,2.02840799,2894.0,2893.9,1.78984865]
[1644677877182,2.03149238,2894.0,2893.9,1.78984865]
[1644677877585,1.78554484,2895.7,2894.1,3.3]
[1644677877800,0.03617942,2895.0,2894.4,5.0]
[1644677877997,0.138368,2896.8,2894.8,5.0129747]
[1644677878183,0.138368,2896.8,2894.9,3.915]
[1644677878382,0.138368,2896.8,2895.0,1.1726]
[1644677878584,0.138368,2896.8,2895.5,0.86335]
[1644677878782,0.138368,2896.8,2895.6,0.5876]
[1644677879189,0.138368,2896.8,2895.7,0.17209129]
[1644677879387,0.138368,2896.8,2895.9,0.86314]
[1644677879584,0.138368,2896.8,2896.0,0.8876]
[1644677879783,0.138368,2896.8,2896.1,0.86313]
[1644677880027,0.138368,2896.8,2896.2,0.5876]
[1644677880226,0.00684405,2896.5,2896.2,0.5876]
[1644677881023,0.138368,2896.8,2896.2,0.5876]
[1644677881225,0.00684405,2896.5,2896.2,0.5876]
[1644677882034,0.02737208,2896.9,2896.3,3.3]
[1644677882228,0.00235971,2896.7,2896.4,5.07808]
[1644677882426,0.00235971,2896.7,2896.4,4.61589129]
[1644677882629,0.00235971,2896.7,2896.5,0.31049129]
[1644677882826,0.00235971,2896.7,2896.6,0.415]
[1644677883027,0.00235971,2896.7,2896.6,0.5454]
[1644677883232,0.00235971,2896.7,2896.6,0.415]
[1644677883426,0.007,2897.6,2896.9,0.86283]
[1644677883670,0.007,2897.6,2896.6,0.72229129]
[1644677883671,0.007,2897.6,2897.0,0.415]
[1644677883867,0.007,2897.6,2896.7,0.1724]
[1644677884669,0.007,2897.6,2896.4,0.29582725]
[1644677884868,0.007,2897.6,2896.5,0.1725]
[1644677884869,0.00681699,2897.3,2896.5,0.1725]
[1644677885472,0.00681699,2897.3,2896.7,3.4]
[1644677885879,0.6900167,2897.4,2896.7,3.4]
[1644677886073,0.00952598,2897.1,2896.7,3.4]
[1644677886975,0.007,2897.6,2896.7,3.4]
[1644677887174,0.00952607,2897.0,2896.7,3.4]
[1644677888318,5.0,2897.4,2896.7,3.4]
[1644677888525,0.00952612,2897.0,2896.7,3.4]
[1644677889415,0.64926015,2896.8,2896.7,3.4]
[1644677890918,0.00952621,2896.9,2896.7,3.4]
[1644677891188,0.00952621,2896.9,2896.7,2.97991377]
[1644677891376,3.31323004,2896.7,2895.4,3.23245334]
[1644677891575,4.57298524,2896.6,2895.4,3.23245334]
[1644677891771,0.001,2896.5,2895.4,3.23245334]
[1644677891971,0.001,2896.5,2895.4,3.22340078]
[1644677892173,0.001,2896.5,2895.4,0.22895334]
[1644677892373,0.25952539,2896.6,2895.4,0.22895334]
[1644677892374,0.65145814,2896.4,2895.4,0.22895334]
[1644677892572,0.00395023,2896.3,2895.4,0.22895334]
[1644677892972,0.25952539,2896.6,2895.5,0.1726]
[1644677892973,0.00395023,2896.5,2895.5,0.1726]
[1644677893372,0.00952539,2896.6,2895.5,0.1726]
[1644677893373,0.00952492,2896.6,2895.5,0.1726]
[1644677893779,0.71464091,2896.4,2895.5,0.1726]
[1644677893973,0.00395023,2896.3,2895.4,0.22895334]
[1644677894173,0.00395023,2896.3,2895.4,0.21990078]
[1644677894573,0.00395023,2896.3,2895.4,0.22719906]
[1644677895422,0.00395023,2896.3,2895.4,0.21990078]
[1644677895821,0.00395023,2896.3,2895.4,0.22719906]
[1644677896221,0.00395023,2896.3,2895.4,3.02719906]
[1644677896427,0.00395023,2896.3,2895.5,0.1726]
[1644677897222,0.00171071,2896.4,2895.5,0.1726]
[1644677897624,1.22053532,2896.4,2895.5,0.1726]
[1644677897826,0.00566094,2896.4,2895.5,0.1726]
[1644677898224,0.66371985,2896.1,2895.5,0.1726]
[1644677898425,0.00566094,2896.4,2895.5,0.1726]
[1644677899476,0.12826094,2896.5,2895.6,3.3]
[1644677899782,0.00952515,2896.6,2895.7,1.45089]
[1644677899783,0.00395308,2896.4,2895.7,1.45089]
[1644677899982,0.00952515,2896.6,2895.8,0.22896316]
[1644677900179,0.00395308,2896.8,2895.9,0.5876]
[1644677900379,0.00495308,2897.3,2895.9,0.5876]
[1644677900680,0.00952539,2896.6,2895.9,1.05969129]
[1644677900884,0.00952539,2896.6,2896.1,0.86315]
[1644677901080,0.00952539,2896.6,2896.2,0.5876]
[1644677901280,0.00395308,2897.3,2896.3,3.3]
[1644677901480,0.1796,2897.6,2896.3,3.3]
[1644677901481,0.1796,2897.6,2896.4,0.415]
[1644677901689,0.00952621,2896.6,2896.4,1.415]
[1644677901881,0.00952621,2896.6,2896.4,0.415]
[1644677902717,0.00395308,2897.1,2896.4,0.415]
[1644677902923,0.68909337,2897.2,2896.4,0.415]
[1644677904625,0.28147809,2896.3,2896.0,1.1726]
[1644677904836,0.28147809,2896.3,2896.1,0.415]
[1644677906671,0.28147809,2896.3,2896.1,0.42416958]
[1644677907269,0.28147809,2896.3,2896.1,4.08736958]
[1644677907474,0.28147809,2896.3,2896.1,4.0782]
[1644677907673,0.28147809,2896.3,2896.2,1.0]
[1644677907974,0.28147809,2896.3,2896.2,1.415]
[1644677908975,0.28147809,2896.3,2896.2,4.915]
[1644677909387,0.28147809,2896.3,2896.2,1.415]
[1644677909579,0.28147809,2896.3,2896.1,3.67236942]
[1644677909580,0.28147809,2896.3,2896.1,2.80916942]
[1644677909777,0.28147809,2896.3,2896.1,2.8]
[1644677910225,0.28147809,2896.3,2896.1,2.80916942]
[1644677910625,0.67017014,2896.2,2896.1,2.80916942]
[1644677911026,0.67017014,2896.2,2896.1,2.8]
[1644677911833,4.79437173,2896.2,2896.1,2.8]
[1644677912228,9.79437173,2896.2,2896.1,2.8]
[1644677912428,9.96697173,2896.2,2896.1,2.8]
[1644677912728,0.84277014,2896.2,2896.1,2.8]
[1644677912927,4.68961698,2896.2,2896.1,2.8]
[1644677913127,0.84277014,2896.2,2896.1,2.8]
[1644677915272,0.28147809,2896.3,2896.1,2.8]
[1644677915779,0.00395308,2896.8,2896.2,4.3]
[1644677915977,0.001,2897.4,2896.2,4.3]
[1644677915978,0.00395308,2897.0,2896.2,4.9664]
[1644677916174,0.00676592,2897.3,2896.2,4.9664]
[1644677916375,0.65050644,2897.2,2896.2,4.9664]
[1644677916873,0.00395308,2897.1,2896.2,4.9664]
[1644677917520,0.00395308,2897.1,2896.6,0.00820241]
[1644677917720,0.65050644,2897.2,2896.6,0.00820241]
[1644677918128,1.22177462,2897.1,2896.6,0.00820241]
[1644677918329,0.001,2897.0,2896.2,4.5514]
[1644677918525,0.00495308,2897.0,2896.8,0.00820184]
[1644677918725,0.001,2897.0,2896.8,0.00820184]
[1644677918926,0.00922751,2897.3,2896.8,0.00820184]
[1644677919525,0.00922751,2897.3,2896.2,1.4938]
[1644677919526,0.007,2897.6,2896.2,1.4938]
[1644677919733,0.00922787,2897.3,2896.9,0.00820142]
[1644677919925,1.22146552,2897.2,2896.9,0.00820142]
[1644677920128,0.001,2897.1,2896.9,0.00820142]
[1644677920726,0.001,2897.1,2896.3,0.1724]
[1644677920929,1.2264186,2897.1,2896.9,0.00760446]
[1644677921184,1.22246552,2897.0,2896.9,0.00760446]
[1644677921976,0.001,2897.0,2896.2,1.0]
[1644677922184,0.00395308,2897.3,2896.8,0.00760459]
[1644677922185,1.2264186,2897.1,2896.8,0.00760459]
[1644677922397,0.001,2897.0,2896.9,0.64289368]
[1644677922583,0.01300161,2897.3,2896.9,0.64289368]
[1644677922584,0.001,2897.1,2896.9,0.64289368]
[1644677922779,0.00904853,2897.3,2897.0,0.22789368]
[1644677922981,0.00904853,2897.3,2897.1,0.415]
[1644677923183,0.51649752,2897.8,2897.2,0.22789368]
[1644677923380,0.00678879,2897.3,2897.2,0.22789368]
[1644677923579,0.00678879,2897.3,2897.0,0.64289368]
[1644677923779,0.00678879,2897.3,2897.1,0.22784849]
[1644677923780,1.22780174,2897.2,2897.1,0.22784849]
[1644677923979,1.22880174,2897.2,2897.1,0.22784849]
[1644677924180,1.15000174,2897.2,2897.1,0.22784849]
[1644677924379,1.15000174,2897.2,2897.0,0.415]
[1644677924579,0.001,2897.1,2897.0,0.41735462]
[1644677924782,0.0039701,2897.7,2897.0,0.41735462]
[1644677925037,0.0039701,2897.8,2897.0,0.41735462]
[1644677925329,0.0039701,2897.8,2897.1,0.1724]
[1644677925630,0.70584458,2898.1,2897.2,0.86285]
[1644677925831,0.70484458,2898.1,2897.3,0.1724]
[1644677926228,0.70484458,2898.1,2897.1,0.00235458]
[1644677926229,0.11822903,2897.2,2897.1,0.00235458]
[1644677926727,0.11822903,2897.2,2897.0,0.415]
[1644677926928,0.11822903,2897.2,2897.1,0.1724]
[1644677927328,0.11822903,2897.2,2897.1,0.5874]
[1644677927528,0.00912239,2897.3,2897.2,3.3]
[1644677927734,0.00912239,2897.3,2897.2,3.9]
[1644677927938,0.05,2898.1,2897.2,3.3]
[1644677928230,0.0094071,2897.4,2897.2,3.3]
[1644677928683,7.1e-06,2897.4,2897.2,3.3]
[1644677928871,7.1e-06,2897.4,2897.3,1.415]
[1644677929071,0.05,2898.1,2897.3,1.415]
[1644677930280,0.05,2898.1,2897.3,5.37781]
[1644677930476,0.05,2898.1,2897.3,4.07781]
[1644677930675,0.05,2898.1,2897.4,1.0]
[1644677930877,0.05,2898.1,2897.4,1.415]
[1644677931679,0.01658409,2897.6,2897.4,1.415]
[1644677931979,0.05,2898.1,2897.5,3.3]
[1644677932181,0.05,2898.1,2897.6,0.1724]
[1644677932417,0.05,2898.1,2897.6,1.1724]
[1644677932619,0.05,2898.1,2897.7,3.55809976]
[1644677932828,0.05,2898.1,2897.8,1.0]
[1644677933018,0.05,2898.1,2897.8,1.415]
[1644677933218,0.05,2898.1,2897.8,1.715]
[1644677933623,0.05,2898.1,2897.9,0.1724]
[1644677933824,0.05,2898.1,2897.8,0.415]
[1644677934024,0.68479808,2897.9,2897.3,4.14339997]
[1644677934227,0.68479808,2897.9,2897.3,4.0052]
[1644677934424,0.68479808,2897.9,2897.3,2.8]
[1644677934625,0.05,2898.1,2897.3,2.8]
[1644677935026,0.65484458,2898.8,2897.3,2.8]
[1644677935227,0.65087448,2898.6,2897.3,2.8]
[1644677935432,0.1763701,2898.5,2897.3,2.8]
[1644677935725,0.6415226,2898.4,2897.3,2.8]
[1644677935926,0.6454927,2898.4,2897.3,2.8]
[1644677936183,0.1724,2898.3,2897.3,2.8]
[1644677936378,0.0039701,2898.2,2897.3,2.8]
[1644677936579,0.0039701,2898.2,2897.4,0.00940978]
[1644677936580,0.00958375,2898.0,2897.4,0.00940978]
[1644677936883,0.56874503,2897.9,2897.4,0.00940978]
[1644677937080,0.74114503,2897.9,2897.4,0.00940978]
[1644677937579,0.74114503,2897.9,2897.3,2.8]
[1644677937777,0.00676144,2897.8,2897.3,2.8]
[1644677937988,0.69040841,2897.4,2897.3,2.8]
[1644677939384,0.00676086,2897.7,2897.3,2.8]
[1644677939583,0.00676086,2897.7,2897.3,3.8]
[1644677939782,0.00676086,2897.7,2897.4,1.1724]
[1644677940024,0.1724,2898.4,2897.4,1.0]
[1644677940224,0.0039701,2898.3,2897.4,1.0]
[1644677940424,0.0039701,2898.3,2897.3,2.8]
[1644677940425,0.00676121,2897.7,2897.3,2.8]
[1644677941227,0.0039701,2898.0,2897.3,2.8]
[1644677941428,0.60818836,2898.1,2897.4,0.0094076]
[1644677941429,0.00958311,2897.7,2897.4,0.0094076]
[1644677942427,0.0039701,2898.4,2897.3,2.8]
[1644677942629,0.65087448,2898.5,2897.3,2.8]
[1644677942630,0.00958322,2897.7,2897.4,0.0094076]
[1644677942826,0.00958322,2897.7,2897.4,0.1818076]
[1644677943027,0.00958322,2897.7,2897.4,1.1818076]
[1644677943674,0.0039701,2898.1,2897.4,1.1724]
[1644677943869,0.00958322,2897.7,2897.4,1.1818076]
[1644677944266,0.0039701,2898.2,2897.5,2.15]
[1644677944470,0.001,2898.4,2897.6,0.26461495]
[1644677944471,1.18610977,2898.1,2897.6,0.26461495]
[1644677944672,0.001,2898.0,2897.6,1.43701495]
[1644677944868,1.17608228,2898.4,2897.7,0.26461495]
[1644677945070,0.0039701,2898.8,2897.8,0.1724]
[1644677945071,1.17708228,2898.3,2897.8,0.1724]
[1644677945373,0.001,2898.2,2897.8,1.1724]
[1644677945573,1.1762973,2898.7,2897.7,0.1724]
[1644677945775,1.85692891,2898.6,2897.5,0.1724]
[1644677945971,1.1772973,2898.5,2897.5,0.1724]
[1644677946174,0.001,2898.4,2897.5,0.17522932]
[1644677946372,1.1772973,2898.4,2897.5,0.17522932]
[1644677946572,0.0049701,2898.3,2897.5,0.17522932]
[1644677946774,1.1312674,2898.2,2897.5,0.00282932]
[1644677947073,1.55542451,2899.1,2897.3,2.8]
[1644677947074,0.00175798,2897.4,2897.3,2.8]
[1644677947274,0.00175798,2897.4,2897.3,2.9724]
[1644677947737,0.00175798,2897.4,2897.3,2.8]
[1644677949543,0.00175798,2897.4,2897.3,7.41694653]
[1644677949741,0.00398435,2898.5,2897.3,4.5724]
[1644677949944,0.0067557,2897.8,2897.4,0.1724]
[1644677950141,0.0067557,2897.8,2897.5,0.497]
[1644677950441,0.0067557,2897.8,2897.6,0.1724]
[1644677950645,0.0067557,2897.8,2897.6,1.03507]
[1644677950857,0.55779165,2898.6,2897.6,0.4724]
[1644677951045,0.00958324,2897.8,2897.6,0.1724]
[1644677951295,0.00958324,2897.8,2897.6,1.1724]
[1644677951886,0.00958324,2897.8,2897.7,3.63709253]
[1644677952087,0.01098435,2899.0,2897.8,0.1724]
[1644677952286,0.03832436,2898.5,2897.9,0.497]
[1644677952485,0.03832436,2898.5,2898.0,0.1724]
[1644677953285,0.007,2899.0,2898.0,0.1724]
[1644677953286,0.00398435,2898.8,2898.0,0.1724]
[1644677953495,0.00675638,2898.4,2898.0,0.1724]
[1644677953784,0.00675638,2898.4,2898.0,1.1724]
[1644677954087,0.00675638,2898.4,2898.0,6.39754]
[1644677954291,0.00675638,2898.4,2898.1,0.497]
[1644677954490,0.007,2899.0,2898.1,1.7523]
[1644677954919,5.638e-05,2898.3,2898.1,1.7523]
[1644677955123,5.638e-05,2898.3,2898.2,0.1724]
[1644677955323,5.638e-05,2898.3,2898.2,0.9694]
[1644677955623,0.007,2899.0,2898.2,0.9694]
[1644677955821,0.007,2899.0,2898.4,0.86249]
[1644677956028,0.007,2899.0,2898.5,0.1724]
[1644677956224,0.007,2899.0,2898.4,0.86249]
[1644677957124,0.00958226,2898.8,2898.4,0.86249]
[1644677957524,0.00958226,2898.8,2898.5,0.797]
[1644677957726,0.00958226,2898.8,2898.6,0.86238]
[1644677957925,0.00958226,2898.8,2898.7,0.497]
[1644677958125,0.007,2899.0,2898.7,0.497]
[1644677958332,0.00398435,2899.8,2898.8,1.03474]
[1644677958539,0.03832331,2899.3,2898.9,0.13819997]
[1644677958777,0.03832331,2899.3,2899.0,0.1724]
[1644677958976,0.03832331,2899.3,2899.1,0.497]
[1644677959172,0.03832331,2899.3,2899.2,0.1724]
[1644677959376,0.04092649,2899.6,2899.2,0.86225]
[1644677959575,0.00674918,2899.3,2899.2,0.86225]
[1644677959777,0.00674918,2899.3,2899.2,2.2994888]
[1644677960378,0.007,2900.1,2899.2,2.2994888]
[1644677960578,0.007,2900.1,2899.3,0.4724]
[1644677960579,0.01098435,2900.1,2899.3,0.4724]
[1644677960778,0.01098435,2900.1,2899.4,0.497]
[1644677960977,0.007,2900.1,2899.4,0.497]
[1644677961183,0.007,2900.1,2899.5,3.56752873]
[1644677961377,0.007,2900.1,2899.6,2.3591]
[1644677961576,0.007,2900.1,2899.6,1.497]
[1644677961776,0.007,2900.1,2899.6,4.39719973]
[1644677961977,0.0067155,2899.9,2899.6,0.797]
[1644677962178,0.0067155,2899.9,2899.7,1.0]
[1644677962431,0.0067155,2899.9,2899.8,4.08185028]
[1644677962624,0.0067155,2899.9,2899.8,0.497]
[1644677962821,0.007,2900.1,2899.8,4.87744113]
[1644677963021,0.007,2900.1,2899.9,0.86194]
[1644677963221,0.0067155,2900.0,2899.9,1.86194]
[1644677963421,0.0067155,2900.0,2899.9,0.497]
[1644677963828,0.02685798,2900.4,2899.8,0.3402388]
[1644677963829,0.41979778,2900.3,2899.8,0.3402388]
[1644677964222,0.001,2900.7,2899.8,0.3402388]
[1644677964423,0.1723,2900.7,2899.8,0.3402388]
[1644677964823,0.1733,2900.7,2899.8,0.3402388]
[1644677965025,0.1723,2900.7,2899.8,0.3402388]
[1644677965226,0.59793783,2900.4,2899.8,0.3402388]
[1644677965430,5.1724,2900.3,2899.8,0.3402388]
[1644677965630,5.1724,2900.3,2899.6,2.0567388]
[1644677965631,3.3,2900.1,2899.6,2.0567388]
[1644677965829,0.82427448,2900.0,2899.6,2.0567388]
[1644677966169,0.1734,2900.0,2899.8,2.0]
[1644677966373,0.66143536,2899.9,2899.8,2.0]
[1644677966574,0.89451999,2899.8,2899.6,8.001e-05]
[1644677966773,0.89451999,2899.8,2898.2,3.5]
[1644677966774,9.47218894,2899.7,2898.2,3.5]
[1644677966969,0.25,2899.5,2898.1,1.2416]
[1644677967169,1.17617329,2899.4,2898.1,1.2416]
[1644677967369,1.17318894,2899.3,2898.2,0.27570205]
[1644677967570,0.00498435,2899.2,2898.2,0.44810205]
[1644677967771,0.69649404,2899.2,2898.3,0.27570205]
[1644677968083,0.69649404,2899.2,2898.7,0.00958809]
[1644677968084,5.0,2898.9,2898.7,0.00958809]
[1644677968274,0.00594662,2898.2,2898.0,0.1724]
[1644677969473,0.00594662,2898.2,2898.1,0.27602156]
[1644677969672,0.00594662,2898.2,2898.0,0.1724]
[1644677969929,0.00594662,2898.2,2898.1,0.27606918]
[1644677970124,0.00594662,2898.2,2898.1,0.27608168]
[1644677970525,0.00594662,2898.2,2898.0,0.27608168]
[1644677972830,0.00594662,2898.2,2898.0,0.28567046]
[1644677973029,0.00594662,2898.2,2898.1,0.27617095]
[1644677973231,0.00594662,2898.2,2898.1,0.44857095]
[1644677973875,0.00594662,2898.2,2898.1,0.27617095]
[1644677974275,0.00594662,2898.2,2898.1,0.44857095]
[1644677974480,0.00594662,2898.2,2898.1,3.24857095]
[1644677975081,0.00594662,2898.2,2898.1,3.07617095]
[1644677975282,0.00594662,2898.2,2898.1,3.24857095]
[1644677975785,0.00594662,2898.2,2898.1,0.44857095]
[1644677976382,0.00594662,2898.2,2898.1,0.27617095]
[1644677976684,0.00594662,2898.2,2898.1,0.44857095]
[1644677977621,0.00594662,2898.2,2898.1,0.27617095]
[1644677977831,4.662e-05,2898.2,2898.1,0.27617095]
[1644677978025,4.662e-05,2898.2,2898.1,0.44857095]
[1644677978221,4.662e-05,2898.2,2898.1,0.74857095]
[1644677978624,4.662e-05,2898.2,2898.1,1.04857095]
[1644677979028,4.662e-05,2898.2,2898.1,0.44857095]
[1644677979424,4.662e-05,2898.2,2898.1,0.27617095]
[1644677981877,4.662e-05,2898.2,2898.1,0.27617095]
[1644677982075,4.662e-05,2898.2,2897.6,0.13819997]
[1644677982275,4.662e-05,2898.2,2897.7,0.21726977]
[1644677982477,4.662e-05,2898.2,2898.0,0.00958873]
[1644677983075,0.529183,2898.2,2898.0,0.00958873]
[1644677983277,0.529183,2898.2,2897.6,0.13819997]
[1644677983475,0.529183,2898.2,2897.7,0.21748067]
[1644677983676,0.529183,2898.2,2898.0,0.00958878]
[1644677984485,0.529183,2898.2,2897.4,0.1724]
[1644677984486,4.84699091,2898.1,2897.4,0.1724]
[1644677984680,1.23475562,2898.0,2897.4,0.1724]
[1644677984935,0.001,2897.9,2897.4,0.1724]
[1644677985126,0.001,2897.9,2896.5,0.288375]
[1644677985127,3.75453409,2897.9,2896.5,0.288375]
[1644677985325,1.23475562,2897.8,2897.0,0.21759466]
[1644677985525,1.23475562,2897.8,2897.1,0.21759466]
[1644677985526,0.1734,2897.7,2897.1,0.21759466]
[1644677985725,1.23375562,2897.6,2896.4,1.3636]
[1644677985924,0.001,2897.5,2896.5,0.21789075]
[1644677986125,1.23475562,2897.5,2897.3,0.00958948]
[1644677986325,0.001,2897.4,2897.3,0.00958948]
[1644677986924,1.25981742,2897.8,2896.6,0.1724]
[1644677987128,0.001,2897.7,2897.2,0.00959738]
[1644677987326,1.26081742,2897.7,2897.2,0.00959738]
[1644677987525,0.1724,2897.9,2897.2,0.00959738]
[1644677987526,0.001,2897.6,2897.2,0.00959738]
[1644677987727,5.0,2897.3,2897.2,0.00959738]
[1644677987930,6.26081742,2897.3,2897.2,0.00959738]
[1644677988228,0.01726264,2896.7,2895.7,0.1724]
[1644677988433,0.01726264,2896.7,2896.5,0.03839856]
[1644677989075,0.01726264,2896.7,2896.6,0.14658352]
[1644677989276,0.01726264,2896.7,2895.5,2.11348064]
[1644677989277,0.01726264,2896.7,2895.6,0.1726]
[1644677989475,0.01726264,2896.7,2895.8,0.1726]
[1644677989681,0.01726264,2896.7,2895.9,0.1464469]
[1644677989876,0.01726264,2896.7,2896.0,0.1464469]
[1644677990080,0.01726264,2896.7,2896.1,0.1464469]
[1644677990379,0.01726264,2896.7,2896.2,0.1464469]
[1644677990581,0.01726264,2896.7,2896.3,0.1464469]
[1644677990781,0.01726264,2896.7,2896.4,0.1464469]
[1644677990981,0.01726264,2896.7,2895.6,0.82511674]
[1644677991181,0.01726264,2896.7,2895.7,0.14644842]
[1644677991382,0.01726264,2896.7,2895.8,0.1726]
[1644677991584,0.01726264,2896.7,2895.9,0.79896516]
[1644677991784,0.01726264,2896.7,2896.2,0.65251674]
[1644677991982,0.01726264,2896.7,2896.3,0.1726]
[1644677992186,0.01726264,2896.7,2896.4,0.14644842]
[1644677992439,0.01726264,2896.7,2896.4,0.31904842]
[1644677992630,0.01726264,2896.7,2896.5,0.14644842]
[1644677993233,0.1726,2898.1,2896.7,0.01713736]
[1644677993234,0.18219254,2898.1,2896.7,0.01713736]
[1644677993428,0.18219254,2898.1,2896.8,0.31884842]
[1644677993429,0.00959254,2898.1,2896.8,0.31884842]